bitfinex-derivatives/quotes_SOLF0:USTF0_20250524
["timestamp","ask_amount","ask_price","bid_price","bid_amount"]
[1748114446075,0.03652077,177.06,177.05,5.6464]
[1748114458888,0.03652077,177.06,177.03,5.04268455]
[1748114459088,5.6465,177.05,177.03,5.04268455]
[1748114459293,0.03652077,177.06,177.03,5.04268455]
[1748114459694,0.03652077,177.06,177.03,0.03979785]
[1748114459890,5.12694045,177.04,177.03,9.785e-05]
[1748114460095,5.12694045,177.04,176.99,5.26651923]
[1748114460297,10.77494045,177.0,176.99,5.26651923]
[1748114460491,122.63494045,177.0,176.99,5.26651923]
[1748114460691,116.98694045,177.0,176.93,5.00359829]
[1748114460891,5.6493,176.97,176.93,5.00359829]
[1748114461098,5.6493,176.97,176.95,0.03589714]
[1748114461497,5.6860399,176.98,176.95,0.03589714]
[1748114463695,0.0373399,176.98,176.95,0.03589714]
[1748114463900,5.6492,176.97,176.95,0.03589714]
[1748114464600,5.6861399,176.98,176.95,0.03589714]
[1748114465401,5.6861399,176.98,176.95,5.68549714]
[1748114467299,5.6861399,176.98,176.95,0.03589714]
[1748114467802,5.6491,176.97,176.95,0.03589714]
[1748114469602,5.6860399,176.98,176.95,0.03589714]
[1748114470602,5.6860399,176.98,176.95,5.68549714]
[1748114470803,5.6860399,176.98,176.95,0.03589714]
[1748114471410,5.649,176.97,176.95,0.03589714]
[1748114472107,5.6861399,176.98,176.95,0.03589714]
[1748114473506,5.649,176.97,176.95,0.03589714]
[1748114474502,0.0373399,176.98,176.95,0.03589714]
[1748114475007,111.84,177.03,176.95,0.03589714]
[1748114475207,111.84,177.03,177.0,5.648]
[1748114475711,117.4871,177.03,177.0,5.648]
[1748114476007,0.03897872,177.03,177.0,0.03602275]
[1748114477510,0.03897872,177.03,177.01,5.6477]
[1748114479709,0.03897872,177.03,177.02,5.6474]
[1748114482508,0.03897872,177.03,177.0,0.03602275]
[1748114482707,0.03897872,177.03,177.01,5.6476]
[1748114494824,0.03897872,177.03,177.02,5.6474]
[1748114495309,5.12720151,177.1,177.01,9.07070151]
[1748114495513,111.8,177.1,177.04,5.12720151]
[1748114495717,5.6443,177.12,177.08,5.6453]
[1748114496020,5.6443,177.12,177.04,5.12720151]
[1748114496218,5.6443,177.12,177.06,0.04023836]
[1748114496719,5.6446,177.11,177.07,5.6455]
[1748114499225,111.8,177.13,177.06,0.04023836]
[1748114499827,119.80574796,177.13,177.06,0.04023836]
[1748114500932,5.6458,177.07,177.06,0.04023836]
[1748114501123,119.80574796,177.13,177.06,0.04023836]
[1748114502832,5.6456,177.08,177.06,0.04023836]
[1748114505830,5.6458,177.07,177.06,0.04023836]
[1748114510441,5.6455,177.08,177.06,0.04023836]
[1748114511544,5.6453,177.09,177.06,5.68633836]
[1748114512041,119.80574796,177.13,177.06,0.04023836]
[1748114512238,5.6443,177.12,177.06,0.04023836]
[1748114512443,111.8,177.13,177.06,0.04023836]
[1748114512744,117.444,177.13,177.09,5.6449]
[1748114513245,5.6443,177.12,177.08,5.6452]
[1748114513436,111.8,177.13,177.06,0.04023836]
[1748114513837,5.6448,177.11,177.07,5.6458]
[1748114514137,5.6448,177.11,177.06,0.04023836]
[1748114515442,5.6448,177.11,177.08,5.6455]
[1748114515943,5.6448,177.11,177.06,0.04023836]
[1748114516236,5.6453,177.09,177.06,0.04023836]
[1748114517648,5.6453,177.09,177.06,5.68623836]
[1748114520442,5.12507603,177.08,177.06,0.04023836]
[1748114520947,5.6473,177.03,176.99,5.6482]
[1748114521148,5.12507603,177.04,176.97,111.72]
[1748114521346,5.12507603,177.06,176.98,10.39159526]
[1748114521646,5.12507603,177.06,177.03,5.6471]
[1748114521846,5.16490613,177.06,177.03,5.68729977]
[1748114522148,5.16490613,177.06,177.03,0.04019977]
[1748114523548,5.6465,177.05,177.03,0.04019977]
[1748114523844,0.0398301,177.06,177.03,0.04019977]
[1748114525552,5.6468,177.04,177.03,0.04019977]
[1748114529757,5.6465,177.05,177.03,0.04019977]
[1748114529953,111.72,177.05,177.03,0.04019977]
[1748114531558,0.0398301,177.06,177.03,0.04019977]
[1748114533561,0.0398301,177.06,177.04,5.6467]
[1748114534556,0.0398301,177.06,177.03,0.04019977]
[1748114535262,5.6468,177.04,177.03,0.04019977]
[1748114537770,125.31855303,177.04,177.03,9.977e-05]
[1748114537973,119.67175303,177.04,176.92,1.8745]
[1748114538877,5.6486,176.99,176.96,0.03997291]
[1748114539171,0.041954,177.0,176.96,0.03997291]
[1748114541577,0.041954,177.0,176.99,5.6484]
[1748114565192,0.041954,177.0,176.99,10.60882563]
[1748114566699,0.041954,177.0,176.99,5.6484]
[1748114566999,0.041954,177.0,176.98,4.96042563]
[1748114567795,117.2859,177.07,177.03,5.647]
[1748114568001,122.41320656,177.07,177.0,5.12730656]
[1748114568400,122.41320656,177.07,177.04,5.6467]
[1748114568904,122.44985323,177.07,177.04,5.68846734]
[1748114569403,5.6461,177.06,177.04,0.04176734]
[1748114571407,5.6464,177.05,177.04,0.04176734]
[1748114573807,10.77370656,177.05,177.04,0.04176734]
[1748114574301,5.6482,177.0,176.95,9.12730656]
[1748114574607,5.6482,177.0,176.93,116.76730656]
[1748114574795,5.6482,177.0,176.96,5.6491]
[1748114575300,5.68524454,177.0,176.96,5.68760967]
[1748114575608,5.68524454,177.0,176.97,10.60994529]
[1748114576809,0.03704454,177.0,176.97,4.96104529]
[1748114577111,0.03704454,177.0,176.96,0.03850967]
[1748114577711,0.03704454,177.0,176.97,5.6488]
[1748114580411,5.68524454,177.0,176.97,5.6488]
[1748114580707,0.03704454,177.0,176.96,5.68770967]
[1748114581107,5.6484,176.99,176.96,5.68770967]
[1748114581410,0.03704454,177.0,176.96,0.03850967]
[1748114581810,0.03704454,177.0,176.99,5.6483]
[1748114587216,0.03704454,177.0,176.98,5.6486]
[1748114588216,0.03704454,177.0,176.96,0.03850967]
[1748114589616,5.6484,176.99,176.96,5.68750967]
[1748114590019,0.03704454,177.0,176.96,0.03850967]
[1748114590207,5.68534454,177.0,176.96,5.68770967]
[1748114591716,0.03704454,177.0,176.96,0.03850967]
[1748114592816,0.03704454,177.0,176.97,5.6488]
[1748114594921,0.03704454,177.0,176.98,5.6486]
[1748114596025,0.03704454,177.0,176.99,5.6483]
[1748114604823,0.03704454,177.0,176.97,1.8717]
[1748114605323,0.03704454,177.0,176.97,7.5206]
[1748114610023,5.68514454,177.0,176.97,1.8717]
[1748114610325,5.16570679,177.0,176.96,0.03850967]
[1748114611328,5.6489,176.98,176.96,0.03850967]
[1748114612630,5.649,176.97,176.96,0.03850967]
[1748114613531,10.77736225,176.98,176.96,0.03850967]
[1748114615620,5.12866225,176.98,176.96,0.03850967]
[1748114616131,5.12866225,176.98,176.96,5.68760967]
[1748114618935,5.12866225,176.98,176.96,0.03850967]
[1748114619435,10.77756225,176.98,176.96,0.03850967]
[1748114622538,5.649,176.97,176.96,0.03850967]
[1748114629639,10.77746225,176.98,176.96,0.03850967]
[1748114629841,5.12866225,176.98,176.96,0.03850967]
[1748114630140,10.77736225,176.98,176.96,0.03850967]
[1748114633944,5.649,176.97,176.96,0.03850967]
[1748114635747,10.77746225,176.98,176.96,0.03850967]
[1748114637145,5.649,176.97,176.96,0.03850967]
[1748114637549,5.12866225,176.98,176.96,0.03850967]
[1748114637745,5.6488,176.98,176.96,0.03850967]
[1748114638046,10.77746225,176.98,176.96,0.03850967]
[1748114643354,5.649,176.97,176.96,0.03850967]
[1748114644160,5.6503,176.93,176.92,4.9575285]
[1748114644346,5.6503,176.93,176.84,116.70866225]
[1748114644347,5.12866225,176.93,176.85,4.9575285]
[1748114644546,5.12866225,176.91,176.85,4.9575285]
[1748114644849,5.12866225,176.91,176.89,5.6515]
[1748114645946,5.12866225,176.91,176.88,5.689762]
[1748114646146,5.12866225,176.91,176.88,0.037962]
[1748114646756,10.77986225,176.91,176.88,0.037962]
[1748114647656,5.12866225,176.91,176.88,0.037962]
[1748114648055,5.6515,176.9,176.88,0.037962]
[1748114648257,5.12866225,176.91,176.88,0.037962]
[1748114648456,5.6512,176.9,176.88,0.037962]
[1748114649557,5.6515,176.89,176.88,0.037962]
[1748114650357,5.6513,176.9,176.88,0.037962]
[1748114655166,5.6515,176.89,176.88,0.037962]
[1748114655463,5.12866225,176.91,176.88,0.037962]
[1748114656063,5.6514,176.9,176.88,0.037962]
[1748114658073,10.77966225,176.91,176.88,0.037962]
[1748114658572,5.651,176.91,176.88,5.689862]
[1748114658778,5.12866225,176.9,176.88,5.689862]
[1748114659267,5.68911581,176.92,176.89,5.6515]
[1748114659474,5.16707806,176.92,176.88,0.037962]
[1748114660175,5.16707806,176.92,176.89,5.6513]
[1748114660474,5.16707806,176.92,176.88,0.037962]
[1748114661475,5.16707806,176.92,176.89,5.6515]
[1748114661968,5.12866225,176.9,176.88,0.037962]
[1748114663374,10.78006225,176.9,176.88,0.037962]
[1748114664780,5.12866225,176.9,176.88,5.689762]
[1748114664976,5.12866225,176.9,176.88,0.037962]
[1748114665672,5.68911581,176.92,176.89,5.6515]
[1748114665875,5.68911581,176.92,176.88,0.037962]
[1748114665876,5.16707806,176.92,176.88,0.037962]
[1748114667480,5.6511,176.91,176.88,5.689562]
[1748114668874,0.03841581,176.92,176.88,0.037962]
[1748114669079,0.03841581,176.92,176.88,5.16662425]
[1748114669275,0.03841581,176.92,176.88,116.74662425]
[1748114669475,0.03841581,176.92,176.91,5.6509]
[1748114669679,111.58,176.97,176.9,5.12866225]
[1748114669879,5.12866225,176.98,176.91,1.8572]
[1748114670082,5.12866225,176.98,176.91,3.899]
[1748114670676,5.12866225,176.98,176.95,5.6496]
[1748114670876,0.03656982,176.96,176.95,5.6496]
[1748114677984,111.58,177.0,176.99,5.6484]
[1748114678181,111.54,177.03,176.99,5.6484]
[1748114678484,5.12866225,177.02,176.99,5.6484]
[1748114679081,5.16607376,177.02,176.99,5.6860796]
[1748114679282,5.16607376,177.02,177.0,5.648]
[1748114679982,5.16607376,177.02,176.99,5.6859796]
[1748114680186,0.03741151,177.02,176.99,5.6859796]
[1748114680687,0.03741151,177.02,177.0,5.648]
[1748114680878,0.03741151,177.02,176.99,0.0376796]
[1748114681887,0.03741151,177.02,176.99,5.6859796]
[1748114683490,5.68491151,177.02,176.99,5.6859796]
[1748114683676,5.12866225,177.01,176.99,5.6859796]
[1748114691189,5.12866225,177.01,176.99,0.0376796]
[1748114691391,10.77646225,177.01,176.99,0.0376796]
[1748114701102,5.6478,177.01,176.99,0.0376796]
[1748114701297,10.77646225,177.01,176.99,0.0376796]
[1748114702203,5.648,177.0,176.99,0.0376796]
[1748114702397,5.12866225,177.01,176.91,3.7159]
[1748114702598,5.12866225,176.95,176.91,1.8572]
[1748114703003,5.12866225,176.93,176.91,7.508]
[1748114703304,5.6499,176.95,176.91,1.8572]
[1748114703305,0.03921806,176.94,176.91,1.8572]
[1748114703706,0.03921806,176.94,176.91,7.508]
[1748114704004,5.68921806,176.94,176.91,1.8572]
[1748114704208,0.03921806,176.94,176.91,1.8572]
[1748114704405,0.03921806,176.94,176.91,7.5079]
[1748114705206,0.03921806,176.94,176.91,1.8572]
[1748114706203,0.03921806,176.94,176.93,5.6503]
[1748114709510,0.03921806,176.94,176.92,5.6505]
[1748114709711,0.03921806,176.94,176.9,0.04113435]
[1748114710010,0.03921806,176.94,176.91,5.6508]
[1748114710216,5.12866225,176.93,176.91,5.6508]
[1748114711711,5.12866225,176.93,176.92,5.6506]
[1748114714006,0.03921806,176.94,176.93,5.6503]
[1748114735526,0.03921806,176.94,176.93,7.6083]
[1748114736025,0.03921806,176.94,176.93,9.6449]
[1748114736732,111.44,176.99,176.96,5.6491]
[1748114737734,111.47975722,176.99,176.96,5.68887553]
[1748114739635,111.47975722,176.99,176.97,5.6489]
[1748114739834,0.03975722,176.99,176.97,5.6489]
[1748114740034,0.03975722,176.99,176.96,0.03977553]
[1748114740736,5.68815722,176.99,176.96,0.03977553]
[1748114741733,0.03975722,176.99,176.96,5.68887553]
[1748114743632,0.03975722,176.99,176.96,0.03977553]
[1748114744637,0.03975722,176.99,176.98,5.6487]
[1748114747630,111.42,177.05,177.02,5.6472]
[1748114747830,5.12866225,177.07,177.0,5.12866225]
[1748114748035,5.12866225,177.07,177.01,5.6476]
[1748114748334,5.12866225,177.07,177.0,5.12866225]
[1748114748530,5.6463,177.06,177.02,0.03867503]
[1748114748938,5.6463,177.06,177.02,5.68577503]
[1748114749236,5.6466,177.05,177.02,0.03867503]
[1748114749641,5.6466,177.05,177.02,5.68607503]
[1748114750543,5.6462,177.06,177.02,5.68607503]
[1748114752243,5.6462,177.06,177.03,5.647]
[1748114752541,10.77456225,177.07,177.02,0.03867503]
[1748114753238,5.6459,177.07,177.02,0.03867503]
[1748114753544,5.6459,177.07,177.04,5.6465]
[1748114754142,117.0656,177.08,177.04,5.6465]
[1748114754442,111.42,177.08,177.02,5.16733728]
[1748114754634,5.12866225,177.09,177.02,5.16733728]
[1748114755146,10.77386225,177.09,177.02,5.16733728]
[1748114755648,5.6452,177.09,177.02,0.03867503]
[1748114755943,5.6452,177.09,177.05,5.6462]
[1748114760547,111.34,177.11,177.02,0.03867503]
[1748114761349,111.34,177.11,177.04,5.6467]
[1748114761652,111.34,177.11,177.06,0.03674336]
[1748114762553,5.6458,177.07,177.06,0.03674336]
[1748114763263,5.6472,177.03,176.99,4.0453]
[1748114763464,111.32,177.07,176.99,4.0453]
[1748114763965,111.32,177.07,177.01,5.6475]
[1748114764165,0.03891441,177.06,177.02,0.04074607]
[1748114764662,5.6467,177.05,177.02,0.04074607]
[1748114765161,5.6467,177.05,177.02,5.68794607]
[1748114767964,0.03891441,177.06,177.02,0.04074607]
[1748114769169,0.03891441,177.06,177.05,5.6464]
[1748114778379,111.32,177.13,177.04,5.12399689]
[1748114778581,5.12399689,177.15,177.07,5.12399689]
[1748114778781,5.12399689,177.15,177.09,5.12399689]
[1748114779278,5.12399689,177.13,177.08,111.32]
[1748114779473,5.12399689,177.13,177.09,0.03673176]
[1748114779672,119.32515584,177.17,177.09,5.68183176]
[1748114780480,5.6441,177.13,177.09,5.68183176]
[1748114781381,5.6442,177.12,177.09,5.68183176]
[1748114781574,119.32515584,177.17,177.09,0.03673176]
[1748114783579,5.6446,177.11,177.09,0.03673176]
[1748114784081,5.6448,177.1,177.09,0.03673176]
[1748114788277,111.26,177.13,177.09,0.03673176]
[1748114789580,5.6443,177.12,177.09,5.68173176]
[1748114792282,111.26,177.13,177.09,0.03673176]
[1748114792483,8.00515584,177.17,177.09,0.03673176]
[1748114792683,111.26,177.16,177.11,0.04161771]
[1748114794586,5.6434,177.15,177.12,5.644]
[1748114798689,5.6436,177.14,177.12,5.644]
[1748114800388,5.6436,177.14,177.11,5.68601771]
[1748114800587,111.26,177.16,177.11,5.68601771]
[1748114801086,5.6438,177.14,177.11,5.68601771]
[1748114802390,5.6434,177.15,177.12,5.6442]
[1748114802590,111.26,177.16,177.11,0.04161771]
[1748114803590,5.6436,177.14,177.11,5.68601771]
[1748114803984,111.26,177.16,177.11,0.04161771]
[1748114804184,5.6438,177.14,177.11,5.68601771]
[1748114807392,111.26,177.16,177.11,0.04161771]
[1748114807988,5.6442,177.12,177.11,0.04161771]
[1748114809594,10.76822479,177.12,177.11,0.04161771]
[1748114811595,5.6442,177.12,177.11,0.04161771]
[1748114820109,116.8642,177.12,177.11,0.04161771]
[1748114820606,111.22,177.15,177.11,0.04161771]
[1748114821615,5.6436,177.14,177.11,5.68591771]
[1748114821816,5.6436,177.14,177.11,0.04161771]
[1748114822711,5.644,177.13,177.11,0.04161771]
[1748114823012,111.22,177.15,177.11,0.04161771]
[1748114823410,5.6442,177.12,177.11,0.04161771]
[1748114828816,5.6458,177.07,177.06,3.1185611]
[1748114829415,5.6465,177.05,177.0,3.1185611]
[1748114830018,0.04077258,177.04,177.01,0.03677379]
[1748114830421,5.68757258,177.04,177.01,0.03677379]
[1748114832124,0.04077258,177.04,177.01,0.03677379]
[1748114832519,0.04077258,177.04,177.02,5.6474]
[1748114832723,0.04077258,177.04,177.01,0.03677379]
[1748114833625,5.6473,177.03,177.01,0.03677379]
[1748114834016,5.6474,177.02,177.01,0.03677379]
[1748114834221,0.04077258,177.04,177.01,0.03677379]
[1748114834616,5.68777258,177.04,177.01,0.03677379]
[1748114834821,0.04077258,177.04,177.01,0.03677379]
[1748114836624,5.6474,177.02,177.01,0.03677379]
[1748114847640,5.6493,176.96,176.93,9.598]
[1748114847841,111.24,177.0,176.93,9.598]
[1748114848140,5.6496,176.96,176.93,3.9478]
[1748114848347,111.24,177.0,176.93,1.9568]
[1748114848843,0.04039764,176.98,176.95,0.04332968]
[1748114849339,5.6493,176.97,176.95,0.04332968]
[1748114850347,5.68909764,176.98,176.95,0.04332968]
[1748114855348,5.649,176.97,176.95,0.04332968]
[1748114858653,111.26,176.96,176.81,15.3078]
[1748114858850,8.00627223,176.95,176.86,1.9165]
[1748114859252,5.6511,176.91,176.87,5.6521]
[1748114859653,5.13597392,176.9,176.87,5.68908254]
[1748114860357,5.13597392,176.9,176.87,0.03698254]
[1748114861648,0.04121061,176.91,176.87,0.03698254]
[1748114862457,5.6519,176.88,176.87,0.03698254]
[1748114863756,116.9319,176.88,176.87,0.03698254]
[1748114874769,5.653,176.85,176.82,1.8591]
[1748114875174,111.3,176.84,176.81,5.6538]
[1748114875373,111.3,176.84,176.8,1.876]
[1748114875671,111.33976318,176.84,176.81,5.6539]
[1748114876577,116.99296318,176.84,176.81,5.6539]
[1748114877377,111.33976318,176.84,176.8,1.91823658]
[1748114877673,111.33976318,176.84,176.8,0.04223658]
[1748114878074,5.6535,176.83,176.8,0.04223658]
[1748114878375,111.33976318,176.84,176.8,0.04223658]
[1748114879070,5.6541,176.81,176.8,0.04223658]
[1748114881778,13.67906842,176.81,176.8,0.04223658]
[1748114883767,5.6541,176.81,176.8,0.04223658]
[1748114885381,116.9941,176.81,176.8,0.04223658]
[1748114895083,5.6553,176.78,176.74,5.6563]
[1748114895583,111.34,176.81,176.74,5.6563]
[1748114895982,5.6558,176.76,176.73,7.5133]
[1748114896187,5.69139954,176.76,176.73,7.54964107]
[1748114897082,0.03559954,176.76,176.74,5.6563]
[1748114900074,0.03559954,176.76,176.73,7.54964107]
[1748114900270,5.69129954,176.76,176.73,7.54964107]
[1748114900686,0.03559954,176.76,176.73,7.54964107]
[1748114901488,5.1424673,176.74,176.73,1.89304107]
[1748114901787,5.1424673,176.74,176.73,0.03634107]
[1748114901978,5.6572,176.72,176.7,3.10457107]
[1748114902182,111.34,176.88,176.7,125.24717971]
[1748114902482,111.34,176.88,176.76,5.14260864]
[1748114902675,5.14260864,176.87,176.78,5.14260864]
[1748114903083,0.04227772,176.84,176.83,5.6532]
[1748114903886,111.34,176.88,176.86,5.6525]
[1748114904281,111.34,176.88,176.77,5.10237107]
[1748114904791,111.34,176.88,176.85,5.6526]
[1748114904989,111.37703861,176.88,176.85,5.69169167]
[1748114905186,111.37703861,176.88,176.85,0.03909167]
[1748114905893,111.37703861,176.88,176.86,5.6523]
[1748114906086,111.37703861,176.88,176.85,0.03909167]
[1748114907294,5.6522,176.87,176.85,0.03909167]
[1748114912695,5.6525,176.86,176.85,0.03909167]
[1748114915202,5.6523,176.87,176.85,0.03909167]
[1748114917198,117.02903861,176.88,176.85,0.03909167]
[1748114917398,111.37703861,176.88,176.85,0.03909167]
[1748114917694,111.37703861,176.88,176.86,5.6522]
[1748114921510,111.37703861,176.88,176.87,5.6522]
[1748114922311,111.37703861,176.88,176.85,5.69159167]
[1748114922502,111.37703861,176.88,176.85,0.03909167]
[1748114923010,111.37703861,176.88,176.86,5.6523]
[1748114923210,111.37703861,176.88,176.86,7.5537]
[1748114924907,111.37703861,176.88,176.87,5.6522]
[1748114925113,0.03703861,176.88,176.87,5.6522]
[1748114925312,111.3,176.92,176.87,5.6522]
[1748114925506,5.6511,176.91,176.87,5.6522]
[1748114926013,5.6513,176.9,176.87,5.6522]
[1748114926510,5.69227186,176.9,176.87,5.6522]
[1748114927712,5.6516,176.89,176.86,11.4033]
[1748114932113,5.69237186,176.9,176.87,5.6522]
[1748114932415,0.04097186,176.9,176.86,5.7509]
[1748114932610,112.28,176.95,176.86,5.7509]
[1748114932812,5.6503,176.93,176.9,5.6512]
[1748114933020,112.28,176.95,176.86,1.9014]
[1748114933515,5.6518,176.89,176.86,1.9014]
[1748114933716,5.69421535,176.89,176.86,1.94440068]
[1748114934318,5.69421535,176.89,176.86,7.59670068]
[1748114934928,0.04241535,176.89,176.87,5.6521]
[1748114940822,5.69421535,176.89,176.86,7.59680068]
[1748114942322,0.04241535,176.89,176.87,5.6521]
[1748114942619,0.04241535,176.89,176.86,1.94440068]
[1748114943624,0.04241535,176.89,176.88,5.6519]
[1748114949026,0.04241535,176.89,176.86,1.94440068]
[1748114949537,5.69411535,176.89,176.86,7.59680068]
[1748114952529,5.6519,176.88,176.86,1.94440068]
[1748114952925,0.04241535,176.89,176.86,1.94440068]
[1748114954636,0.04241535,176.89,176.87,5.6519]
[1748114955133,5.6519,176.88,176.86,0.04300068]
[1748114958337,0.04241535,176.89,176.86,0.04300068]
[1748114959637,5.69401535,176.89,176.86,5.69540068]
[1748114963544,5.6521,176.88,176.86,0.04300068]
[1748114966840,5.6521,176.88,176.86,5.69550068]
[1748114967031,5.69401535,176.89,176.86,5.69550068]
[1748114968637,0.04241535,176.89,176.87,5.6522]
[1748114969734,5.69391535,176.89,176.86,5.69540068]
[1748114971036,0.04241535,176.89,176.87,5.6522]
[1748114971542,0.04241535,176.89,176.86,0.04300068]
[1748114972240,5.69391535,176.89,176.86,5.69530068]
[1748114972439,0.04241535,176.89,176.86,0.04300068]
[1748114973540,0.04241535,176.89,176.87,5.6519]
[1748114973742,0.04241535,176.89,176.86,0.04300068]
[1748114974842,0.04241535,176.89,176.87,5.6519]
[1748114978340,0.04241535,176.89,176.88,5.6519]
[1748114981144,0.04241535,176.89,176.86,0.04300068]
[1748114981749,0.04241535,176.89,176.87,5.652]
[1748114983148,0.04241535,176.89,176.86,0.04300068]
[1748114983845,5.69401535,176.89,176.86,5.69550068]
[1748114985645,0.04241535,176.89,176.86,5.69550068]
[1748114987751,0.04241535,176.89,176.87,5.6521]
[1748114989352,0.04241535,176.89,176.86,5.69550068]
[1748114989652,0.04241535,176.89,176.86,0.04300068]
[1748114990549,0.04241535,176.89,176.87,5.6521]
[1748114991952,0.04241535,176.89,176.88,5.6519]
[1748114993046,10.78696997,176.94,176.9,5.6509]
[1748114993241,112.42,176.95,176.87,116.85696997]
[1748114993542,493.63696997,177.0,176.91,5.13696997]
[1748114993749,5.6484,176.99,176.95,5.6494]
[1748114993953,5.6484,176.99,176.93,5.13696997]
[1748114994154,0.03596209,176.98,176.95,5.13696997]
[1748114995657,0.03596209,176.98,176.97,5.6487]
[1748114996354,0.03596209,176.98,176.94,0.03795972]
[1748114997156,5.649,176.97,176.94,0.03795972]
[1748114999863,5.649,176.97,176.94,5.68785972]
[1748115000053,0.03596209,176.98,176.94,0.03795972]
[1748115000249,111.7,177.01,176.94,0.03795972]
[1748115000453,111.68,177.04,176.97,5.649]
[1748115000656,111.68,177.04,176.92,8.01498964]
[1748115001060,111.68,177.04,176.93,111.68]
[1748115001359,5.6486,176.99,176.97,0.03862328]
[1748115002062,5.6481,177.0,176.97,0.03862328]
[1748115003063,5.6484,176.99,176.97,0.03862328]
[1748115004261,5.6487,176.98,176.97,0.03862328]
[1748115005164,5.6484,176.99,176.97,0.03862328]
[1748115005565,119.69498964,177.04,176.97,0.03862328]
[1748115005767,111.68,177.04,176.97,0.03862328]
[1748115006167,111.68,177.04,176.97,111.71862328]
[1748115006467,111.68,177.04,177.01,5.6475]
[1748115006655,113.573,177.07,177.01,0.03560639]
[1748115006859,111.68,177.07,177.01,0.03560639]
[1748115007154,117.3261,177.07,177.03,5.647]
[1748115008465,117.3261,177.07,177.04,5.6467]
[1748115009869,117.3261,177.07,177.03,5.647]
[1748115010164,111.68,177.07,177.01,0.03560639]
[1748115010867,5.6465,177.05,177.01,5.68320639]
[1748115012465,5.6462,177.06,177.02,5.6473]
[1748115013672,600.12,177.1,177.01,0.03560639]
[1748115013969,600.12,177.1,177.01,111.67560639]
[1748115014155,600.12,177.1,177.05,5.6464]
[1748115014156,5.6452,177.09,177.05,5.6464]
[1748115014470,5.6452,177.09,177.05,5.6835762]
[1748115015668,5.6455,177.08,177.05,5.6835762]
[1748115016060,8.01498964,177.12,177.05,0.0371762]
[1748115016561,5.6461,177.06,177.05,0.0371762]
[1748115019075,8.01498964,177.12,177.05,0.0371762]
[1748115019675,5.6454,177.09,177.05,5.6835762]
[1748115022275,5.6454,177.09,177.06,5.6461]
[1748115022671,5.6454,177.09,177.05,0.0371762]
[1748115022867,111.64,177.13,177.07,5.6456]
[1748115023072,111.64,177.13,177.05,0.0371762]
[1748115024477,111.64,177.13,177.05,112.0371762]
[1748115025073,5.6451,177.1,177.06,5.6459]
[1748115026674,5.6451,177.1,177.07,5.6458]
[1748115026875,111.64,177.13,177.05,112.0371762]
[1748115027680,5.6451,177.1,177.06,5.6459]
[1748115027877,111.64,177.13,177.05,112.0371762]
[1748115028369,5.6446,177.11,177.07,5.6455]
[1748115028571,111.64,177.13,177.07,5.6455]
[1748115029580,5.6449,177.1,177.07,5.6455]
[1748115030579,5.6449,177.1,177.06,5.646]
[1748115031482,5.6446,177.11,177.07,5.6456]
[1748115035676,5.6446,177.11,177.05,112.0371762]
[1748115035883,5.6446,177.11,177.08,5.6455]
[1748115039085,111.64,177.13,177.07,5.6456]
[1748115039788,5.6451,177.1,177.07,5.6456]
[1748115042292,5.6446,177.11,177.08,5.6455]
[1748115042491,5.6446,177.11,177.08,5.68404693]
[1748115051896,5.12402432,177.12,177.08,0.03854693]
[1748115052097,10.76822432,177.12,177.09,5.645]
[1748115052396,117.10402432,177.16,177.08,5.16257125]
[1748115052595,5.6434,177.15,177.08,5.1605531]
[1748115052799,7.05675704,177.18,177.1,5.12085704]
[1748115052989,600.14,177.19,177.12,5.15728649]
[1748115053189,5.12085704,177.2,177.12,5.15728649]
[1748115053386,111.98,177.22,177.14,5.12085704]
[1748115053591,111.98,177.22,177.16,0.03683539]
[1748115053796,5.6414,177.21,177.17,5.6426]
[1748115054395,5.6414,177.21,177.16,0.03683539]
[1748115054594,5.6417,177.2,177.16,0.03683539]
[1748115055596,5.642,177.19,177.16,0.03683539]
[1748115056600,5.6423,177.18,177.16,0.03683539]
[1748115058604,5.6426,177.17,177.16,0.03683539]
[1748115060504,5.6424,177.18,177.16,0.03683539]
[1748115062206,111.98,177.22,177.16,0.03683539]
[1748115062807,5.6426,177.17,177.16,0.03683539]
[1748115076119,117.1626,177.17,177.16,0.03683539]
[1748115076319,111.52,177.17,177.08,111.52]